[Event "Titled Tuesday Blitz November 14 Early 2023"]
[White "Ovetchkin, Roman"]
[Black "Ramla2020"]
[WhiteFideId "4119991"]
[WhiteElo "2659"]
[BlackElo "2473"]
[Result "1-0"]
[Round "3"]
[TimeControl "180+1"]
[Date "2023.11.14"]
[WhiteClock "0:00:40"]
[BlackClock "0:00:24"]
[Board "109"]

1. d4 {[%clk 0:02:56]}  Nf6 {[%clk 0:02:57]} 2. c4 {[%clk 0:02:55]}  e6 {[%clk 0:02:57]} 3. g3 {[%clk 0:02:53]}  Bb4+ {[%clk 0:02:55]} 4. Bd2 {[%clk 0:02:52]}  a5 {[%clk 0:02:55]} 5. Bg2 {[%clk 0:02:52]}  O-O {[%clk 0:02:55]} 6. e3 {[%clk 0:02:49]}  d5 {[%clk 0:02:54]} 7. Qc2 {[%clk 0:02:47]}  dxc4 {[%clk 0:02:53]} 8. Qxc4 {[%clk 0:02:46]}  Nbd7 {[%clk 0:02:41]} 9. Nc3 {[%clk 0:02:41]}  Nb6 {[%clk 0:02:40]} 10. Qe2 {[%clk 0:02:38]}  c5 {[%clk 0:02:23]} 11. dxc5 {[%clk 0:02:29]}  Bxc5 {[%clk 0:02:22]} 12. Nf3 {[%clk 0:02:30]}  Qe7 {[%clk 0:02:15]} 13. O-O {[%clk 0:02:30]}  Bd7 {[%clk 0:02:01]} 14. Ne5 {[%clk 0:02:29]}  Nbd5 {[%clk 0:01:56]} 15. Nxd7 {[%clk 0:02:22]}  Qxd7 {[%clk 0:01:52]} 16. Rfd1 {[%clk 0:02:19]}  Nxc3 {[%clk 0:01:46]} 17. Bxc3 {[%clk 0:02:19]}  Qe7 {[%clk 0:01:47]} 18. a3 {[%clk 0:02:13]}  Rad8 {[%clk 0:01:42]} 19. Bxa5 {[%clk 0:02:08]}  b6 {[%clk 0:01:40]} 20. Be1 {[%clk 0:02:05]}  Qa7 {[%clk 0:01:28]} 21. Rxd8 {[%clk 0:02:03]}  Rxd8 {[%clk 0:01:27]} 22. Rd1 {[%clk 0:02:03]}  Re8 {[%clk 0:01:26]} 23. Qb5 {[%clk 0:02:01]}  Qc7 {[%clk 0:01:19]} 24. Qc6 {[%clk 0:01:52]}  Qxc6 {[%clk 0:01:15]} 25. Bxc6 {[%clk 0:01:53]}  Rc8 {[%clk 0:01:15]} 26. Bb7 {[%clk 0:01:52]}  Rc7 {[%clk 0:01:13]} 27. Bf3 {[%clk 0:01:49]}  h5 {[%clk 0:01:12]} 28. Bc3 {[%clk 0:01:45]}  Be7 {[%clk 0:01:09]} 29. h3 {[%clk 0:01:41]}  b5 {[%clk 0:01:05]} 30. Kf1 {[%clk 0:01:28]}  g5 {[%clk 0:01:05]} 31. g4 {[%clk 0:01:21]}  hxg4 {[%clk 0:01:03]} 32. hxg4 {[%clk 0:01:21]}  Nd7 {[%clk 0:01:02]} 33. Be2 {[%clk 0:01:12]}  Rb7 {[%clk 0:00:59]} 34. Bxb5 {[%clk 0:01:09]}  Nf6 {[%clk 0:00:53]} 35. Bc6 {[%clk 0:01:06]}  Rc7 {[%clk 0:00:51]} 36. Bf3 {[%clk 0:01:07]}  Ne8 {[%clk 0:00:46]} 37. a4 {[%clk 0:01:01]}  Nd6 {[%clk 0:00:42]} 38. Be5 {[%clk 0:00:59]}  Rd7 {[%clk 0:00:38]} 39. a5 {[%clk 0:00:52]}  f6 {[%clk 0:00:37]} 40. Bxd6 {[%clk 0:00:37]}  Rxd6 {[%clk 0:00:37]} 41. Rxd6 {[%clk 0:00:38]}  Bxd6 {[%clk 0:00:38]} 42. Ke2 {[%clk 0:00:38]}  Kf8 {[%clk 0:00:37]} 43. Kd3 {[%clk 0:00:38]}  Bb4 {[%clk 0:00:37]} 44. a6 {[%clk 0:00:38]}  Bc5 {[%clk 0:00:38]} 45. Kc4 {[%clk 0:00:38]}  Ba7 {[%clk 0:00:38]} 46. Kb5 {[%clk 0:00:39]}  Ke7 {[%clk 0:00:39]} 47. Kc6 {[%clk 0:00:39]}  Kd8 {[%clk 0:00:24]} 48. Kb7 {[%clk 0:00:40]} 1-0


[Site "https://www.chess.com"]

[Event "Titled Tuesday Blitz November 14 Early 2023"]
[White "Yurasova, Daria"]
[Black "Bao, Qilin"]
[WhiteFideId "34146919"]
[BlackFideId "8605750"]
[WhiteElo "2471"]
[BlackElo "2657"]
[Result "1-0"]
[Round "3"]
[TimeControl "180+1"]
[Date "2023.11.14"]
[WhiteClock "0:00:07"]
[BlackClock "0:00:00"]
[Board "111"]

1. d4 {[%clk 0:03:00]}  Nf6 {[%clk 0:02:56]} 2. Bg5 {[%clk 0:02:58]}  c5 {[%clk 0:02:51]} 3. d5 {[%clk 0:02:57]}  d6 {[%clk 0:02:45]} 4. Bxf6 {[%clk 0:02:56]}  gxf6 {[%clk 0:02:45]} 5. e4 {[%clk 0:02:52]}  Qb6 {[%clk 0:02:42]} 6. Nd2 {[%clk 0:02:51]}  Qxb2 {[%clk 0:02:36]} 7. Rb1 {[%clk 0:02:47]}  Qa3 {[%clk 0:02:34]} 8. Ngf3 {[%clk 0:02:44]}  a6 {[%clk 0:02:24]} 9. Bd3 {[%clk 0:02:41]}  Nd7 {[%clk 0:02:21]} 10. O-O {[%clk 0:02:40]}  b5 {[%clk 0:02:20]} 11. Be2 {[%clk 0:02:12]}  Bh6 {[%clk 0:02:05]} 12. c4 {[%clk 0:02:10]}  b4 {[%clk 0:02:01]} 13. Nb3 {[%clk 0:02:05]}  Nb6 {[%clk 0:01:33]} 14. Nh4 {[%clk 0:01:51]}  Na4 {[%clk 0:01:31]} 15. Qc2 {[%clk 0:01:27]}  Nc3 {[%clk 0:01:28]} 16. Ra1 {[%clk 0:01:23]}  Rg8 {[%clk 0:01:05]} 17. Nf5 {[%clk 0:01:20]}  Bxf5 {[%clk 0:01:00]} 18. exf5 {[%clk 0:01:21]}  O-O-O {[%clk 0:00:47]} 19. Bf3 {[%clk 0:01:21]}  Bf4 {[%clk 0:00:44]} 20. Rfe1 {[%clk 0:01:10]}  Be5 {[%clk 0:00:41]} 21. g3 {[%clk 0:01:10]}  Rd7 {[%clk 0:00:31]} 22. Kh1 {[%clk 0:01:05]}  Rc7 {[%clk 0:00:30]} 23. Bh5 {[%clk 0:01:04]}  Rf8 {[%clk 0:00:25]} 24. f4 {[%clk 0:01:00]}  Bd4 {[%clk 0:00:25]} 25. Nxd4 {[%clk 0:01:01]}  cxd4 {[%clk 0:00:25]} 26. Qd3 {[%clk 0:01:02]}  Nb5 {[%clk 0:00:22]} 27. Qe4 {[%clk 0:00:53]}  Nc3 {[%clk 0:00:15]} 28. Qxd4 {[%clk 0:00:51]}  Qa5 {[%clk 0:00:16]} 29. a3 {[%clk 0:00:36]}  b3 {[%clk 0:00:15]} 30. Rac1 {[%clk 0:00:33]}  Na4 {[%clk 0:00:14]} 31. Rb1 {[%clk 0:00:29]}  Nc5 {[%clk 0:00:14]} 32. Rec1 {[%clk 0:00:27]}  Qb6 {[%clk 0:00:14]} 33. Bd1 {[%clk 0:00:26]}  Rb7 {[%clk 0:00:10]} 34. Rc3 {[%clk 0:00:19]}  Kc7 {[%clk 0:00:10]} 35. Qe3 {[%clk 0:00:18]}  Kd7 {[%clk 0:00:09]} 36. Qf3 {[%clk 0:00:16]}  Rfb8 {[%clk 0:00:08]} 37. Re3 {[%clk 0:00:14]}  b2 {[%clk 0:00:07]} 38. Qe2 {[%clk 0:00:12]}  Re8 {[%clk 0:00:07]} 39. Qg2 {[%clk 0:00:09]}  Kd8 {[%clk 0:00:03]} 40. Re2 {[%clk 0:00:09]}  Qa5 {[%clk 0:00:03]} 41. Qf1 {[%clk 0:00:08]}  Qc3 {[%clk 0:00:02]} 42. Rc2 {[%clk 0:00:07]}  Qd4 {[%clk 0:00:02]} 43. Qe2 {[%clk 0:00:06]}  Ne4 {[%clk 0:00:02]} 44. Kg2 {[%clk 0:00:03]}  Nc3 {[%clk 0:00:02]} 45. Rxc3 {[%clk 0:00:04]}  Qxc3 {[%clk 0:00:02]} 46. Ba4 {[%clk 0:00:04]}  Kc7 {[%clk 0:00:01]} 47. Bxe8 {[%clk 0:00:03]}  Rb3 {[%clk 0:00:02]} 48. Bxf7 {[%clk 0:00:04]}  Rb7 {[%clk 0:00:02]} 49. Qxe7+ {[%clk 0:00:04]}  Kb8 {[%clk 0:00:02]} 50. Qd8+ {[%clk 0:00:05]}  Ka7 {[%clk 0:00:02]} 51. Qxd6 {[%clk 0:00:04]}  Qc2+ {[%clk 0:00:01]} 52. Kh3 {[%clk 0:00:05]}  Qxb1 {[%clk 0:00:01]} 53. Qc5+ {[%clk 0:00:05]}  Ka8 {[%clk 0:00:02]} 54. Qf8+ {[%clk 0:00:05]}  Ka7 {[%clk 0:00:02]} 55. Qc5+ {[%clk 0:00:06]}  Ka8 {[%clk 0:00:02]} 56. Qc8+ {[%clk 0:00:07]}  Rb8 {[%clk 0:00:00]} 57. Qc6+ {[%clk 0:00:07]} 1-0


[Site "https://www.chess.com"]

[Event "Titled Tuesday Blitz November 14 Early 2023"]
[White "Raahul V S"]
[Black "Aash20"]
[WhiteFideId "25035525"]
[WhiteElo "2655"]
[BlackElo "2470"]
[Result "1-0"]
[Round "3"]
[TimeControl "180+1"]
[Date "2023.11.14"]
[WhiteClock "0:00:25"]
[BlackClock "0:00:22"]
[Board "112"]

1. a3 {[%clk 0:03:00]}  d5 {[%clk 0:02:58]} 2. d4 {[%clk 0:02:59]}  Nf6 {[%clk 0:02:57]} 3. Nf3 {[%clk 0:02:59]}  c5 {[%clk 0:02:53]} 4. e3 {[%clk 0:02:59]}  Nc6 {[%clk 0:02:52]} 5. dxc5 {[%clk 0:02:58]}  e5 {[%clk 0:02:50]} 6. b4 {[%clk 0:02:58]}  Bg4 {[%clk 0:02:47]} 7. Be2 {[%clk 0:02:56]}  a5 {[%clk 0:02:40]} 8. b5 {[%clk 0:02:53]}  Bxf3 {[%clk 0:02:38]} 9. Bxf3 {[%clk 0:02:53]}  Na7 {[%clk 0:02:37]} 10. Bb2 {[%clk 0:02:50]}  Bxc5 {[%clk 0:02:33]} 11. Bxe5 {[%clk 0:02:49]}  O-O {[%clk 0:02:31]} 12. a4 {[%clk 0:02:44]}  Qe7 {[%clk 0:02:24]} 13. Bd4 {[%clk 0:02:41]}  Rad8 {[%clk 0:02:19]} 14. O-O {[%clk 0:02:40]}  Nc8 {[%clk 0:02:11]} 15. Qd2 {[%clk 0:02:36]}  Bxd4 {[%clk 0:02:04]} 16. Qxd4 {[%clk 0:02:27]}  Qb4 {[%clk 0:01:46]} 17. Qxb4 {[%clk 0:02:19]}  axb4 {[%clk 0:01:47]} 18. Nd2 {[%clk 0:02:19]}  Nb6 {[%clk 0:01:40]} 19. Rfb1 {[%clk 0:02:18]}  Rc8 {[%clk 0:01:37]} 20. Ra2 {[%clk 0:02:09]}  Nc4 {[%clk 0:01:28]} 21. Nxc4 {[%clk 0:02:09]}  Rxc4 {[%clk 0:01:28]} 22. Be2 {[%clk 0:02:09]}  Rc3 {[%clk 0:01:20]} 23. Rxb4 {[%clk 0:02:08]}  Rfc8 {[%clk 0:01:20]} 24. Bd1 {[%clk 0:01:35]}  Kf8 {[%clk 0:01:16]} 25. a5 {[%clk 0:01:34]}  Ke7 {[%clk 0:01:15]} 26. a6 {[%clk 0:01:34]}  bxa6 {[%clk 0:01:15]} 27. bxa6 {[%clk 0:01:34]}  Ra8 {[%clk 0:01:14]} 28. h3 {[%clk 0:01:31]}  Kd6 {[%clk 0:01:10]} 29. Rb6+ {[%clk 0:01:25]}  Rc6 {[%clk 0:01:10]} 30. Rxc6+ {[%clk 0:01:24]}  Kxc6 {[%clk 0:01:10]} 31. Be2 {[%clk 0:01:24]}  Ne4 {[%clk 0:01:09]} 32. Bd3 {[%clk 0:01:19]}  Nc5 {[%clk 0:01:08]} 33. Kf1 {[%clk 0:01:18]}  Kb6 {[%clk 0:01:01]} 34. Ke2 {[%clk 0:01:16]}  Ka7 {[%clk 0:00:57]} 35. Ra5 {[%clk 0:01:15]}  Rc8 {[%clk 0:00:56]} 36. Kd2 {[%clk 0:01:04]}  h6 {[%clk 0:00:54]} 37. f3 {[%clk 0:01:04]}  Rc7 {[%clk 0:00:52]} 38. Be2 {[%clk 0:00:59]}  Kb6 {[%clk 0:00:49]} 39. Rb5+ {[%clk 0:00:55]}  Ka7 {[%clk 0:00:49]} 40. Rb4 {[%clk 0:00:55]}  Rd7 {[%clk 0:00:46]} 41. Kc3 {[%clk 0:00:40]}  Ne6 {[%clk 0:00:44]} 42. Bd3 {[%clk 0:00:36]}  Rc7+ {[%clk 0:00:43]} 43. Kd2 {[%clk 0:00:36]}  Nc5 {[%clk 0:00:43]} 44. Rd4 {[%clk 0:00:37]}  Nxa6 {[%clk 0:00:40]} 45. Ra4 {[%clk 0:00:33]}  Rc6 {[%clk 0:00:40]} 46. c4 {[%clk 0:00:29]}  dxc4 {[%clk 0:00:40]} 47. Bxc4 {[%clk 0:00:30]}  Kb7 {[%clk 0:00:40]} 48. Bd5 {[%clk 0:00:29]}  Nc5 {[%clk 0:00:37]} 49. Bxc6+ {[%clk 0:00:28]}  Kxc6 {[%clk 0:00:37]} 50. Ra7 {[%clk 0:00:29]}  Nd7 {[%clk 0:00:36]} 51. Kc3 {[%clk 0:00:29]}  Kd6 {[%clk 0:00:36]} 52. Kd4 {[%clk 0:00:29]}  g6 {[%clk 0:00:36]} 53. Rxd7+ {[%clk 0:00:28]}  Kxd7 {[%clk 0:00:36]} 54. Kd5 {[%clk 0:00:27]}  Ke7 {[%clk 0:00:36]} 55. Ke5 {[%clk 0:00:25]}  f6+ {[%clk 0:00:35]} 56. Kd5 {[%clk 0:00:26]}  Kd7 {[%clk 0:00:35]} 57. e4 {[%clk 0:00:25]}  g5 {[%clk 0:00:32]} 58. g3 {[%clk 0:00:25]}  Ke7 {[%clk 0:00:31]} 59. f4 {[%clk 0:00:24]}  Kf7 {[%clk 0:00:29]} 60. f5 {[%clk 0:00:20]}  h5 {[%clk 0:00:29]} 61. Kd6 {[%clk 0:00:20]}  g4 {[%clk 0:00:23]} 62. h4 {[%clk 0:00:19]}  Kf8 {[%clk 0:00:22]} 63. Ke6 {[%clk 0:00:19]}  Kg7 {[%clk 0:00:23]} 64. Ke7 {[%clk 0:00:20]}  Kh6 {[%clk 0:00:21]} 65. Kxf6 {[%clk 0:00:20]}  Kh7 {[%clk 0:00:22]} 66. Kg5 {[%clk 0:00:21]}  Kg7 {[%clk 0:00:22]} 67. Kxh5 {[%clk 0:00:22]}  Kf7 {[%clk 0:00:22]} 68. Kxg4 {[%clk 0:00:22]}  Kf6 {[%clk 0:00:23]} 69. Kf4 {[%clk 0:00:23]}  Kf7 {[%clk 0:00:23]} 70. e5 {[%clk 0:00:24]}  Kg7 {[%clk 0:00:22]} 71. Kg5 {[%clk 0:00:25]} 1-0


[Site "https://www.chess.com"]

[Event "Titled Tuesday Blitz November 14 Early 2023"]
[White "Berezin, Viktor"]
[Black "Yaran, Siar"]
[WhiteFideId "14107872"]
[BlackFideId "6323006"]
[WhiteElo "2470"]
[BlackElo "2654"]
[Result "0-1"]
[Round "3"]
[TimeControl "180+1"]
[Date "2023.11.14"]
[WhiteClock "0:00:07"]
[BlackClock "0:00:13"]
[Board "113"]

1. Nf3 {[%clk 0:02:33]}  Nf6 {[%clk 0:02:59]} 2. c4 {[%clk 0:02:32]}  e6 {[%clk 0:02:59]} 3. g3 {[%clk 0:02:31]}  d5 {[%clk 0:03:00]} 4. Bg2 {[%clk 0:02:32]}  Be7 {[%clk 0:03:00]} 5. O-O {[%clk 0:02:32]}  O-O {[%clk 0:03:01]} 6. b3 {[%clk 0:02:30]}  c5 {[%clk 0:03:01]} 7. Bb2 {[%clk 0:02:27]}  d4 {[%clk 0:03:02]} 8. b4 {[%clk 0:02:27]}  Nc6 {[%clk 0:02:55]} 9. bxc5 {[%clk 0:02:25]}  e5 {[%clk 0:02:54]} 10. d3 {[%clk 0:02:25]}  Bxc5 {[%clk 0:02:53]} 11. Ba3 {[%clk 0:02:25]}  Nd7 {[%clk 0:02:52]} 12. Bxc5 {[%clk 0:02:22]}  Nxc5 {[%clk 0:02:53]} 13. Nfd2 {[%clk 0:02:19]}  Bf5 {[%clk 0:02:48]} 14. Nb3 {[%clk 0:02:19]}  Ne6 {[%clk 0:02:44]} 15. N1d2 {[%clk 0:02:19]}  Qc7 {[%clk 0:02:27]} 16. c5 {[%clk 0:02:19]}  a5 {[%clk 0:02:16]} 17. a4 {[%clk 0:02:16]}  Nb4 {[%clk 0:02:10]} 18. Rc1 {[%clk 0:01:57]}  Na2 {[%clk 0:02:02]} 19. Rc4 {[%clk 0:01:57]}  Nc3 {[%clk 0:01:57]} 20. Qe1 {[%clk 0:01:57]}  Ra6 {[%clk 0:01:43]} 21. Nb1 {[%clk 0:01:49]}  Na2 {[%clk 0:01:31]} 22. Qd2 {[%clk 0:01:38]}  Nb4 {[%clk 0:01:31]} 23. Rfc1 {[%clk 0:01:22]}  Qd7 {[%clk 0:01:07]} 24. Nxa5 {[%clk 0:01:05]}  Rxa5 {[%clk 0:01:02]} 25. Qxb4 {[%clk 0:01:03]}  Rfa8 {[%clk 0:00:48]} 26. c6 {[%clk 0:00:52]}  bxc6 {[%clk 0:00:18]} 27. Bxc6 {[%clk 0:00:51]}  Qd8 {[%clk 0:00:19]} 28. Bxa8 {[%clk 0:00:51]}  Rxa8 {[%clk 0:00:20]} 29. Qb7 {[%clk 0:00:46]}  Nf8 {[%clk 0:00:19]} 30. Qf3 {[%clk 0:00:42]}  Be6 {[%clk 0:00:19]} 31. Rc7 {[%clk 0:00:42]}  Bd5 {[%clk 0:00:19]} 32. Qg4 {[%clk 0:00:37]}  Ne6 {[%clk 0:00:19]} 33. R7c2 {[%clk 0:00:29]}  g6 {[%clk 0:00:19]} 34. Nd2 {[%clk 0:00:24]}  Kg7 {[%clk 0:00:19]} 35. Nf3 {[%clk 0:00:22]}  Qf6 {[%clk 0:00:19]} 36. Rc8 {[%clk 0:00:18]}  Rxa4 {[%clk 0:00:18]} 37. Rb8 {[%clk 0:00:14]}  Ra2 {[%clk 0:00:17]} 38. Nh4 {[%clk 0:00:12]}  h5 {[%clk 0:00:11]} 39. Qh3 {[%clk 0:00:05]}  Rxe2 {[%clk 0:00:11]} 40. Qf1 {[%clk 0:00:06]}  Rd2 {[%clk 0:00:11]} 41. Rcc8 {[%clk 0:00:06]}  Ng5 {[%clk 0:00:10]} 42. Rg8+ {[%clk 0:00:05]}  Kh7 {[%clk 0:00:11]} 43. Rh8+ {[%clk 0:00:06]}  Qxh8 {[%clk 0:00:10]} 44. Rxh8+ {[%clk 0:00:06]}  Kxh8 {[%clk 0:00:11]} 45. f3 {[%clk 0:00:05]}  Bb3 {[%clk 0:00:09]} 46. Qe1 {[%clk 0:00:05]}  Rd1 {[%clk 0:00:09]} 47. Kf2 {[%clk 0:00:05]}  Rxe1 {[%clk 0:00:09]} 48. Kxe1 {[%clk 0:00:06]}  Kg7 {[%clk 0:00:09]} 49. Kf2 {[%clk 0:00:07]}  f5 {[%clk 0:00:10]} 50. f4 {[%clk 0:00:07]}  exf4 {[%clk 0:00:10]} 51. gxf4 {[%clk 0:00:08]}  Ne6 {[%clk 0:00:11]} 52. Ng2 {[%clk 0:00:07]}  Bd5 {[%clk 0:00:11]} 53. Ne1 {[%clk 0:00:07]}  Nxf4 {[%clk 0:00:11]} 54. Kg3 {[%clk 0:00:07]}  g5 {[%clk 0:00:10]} 55. h4 {[%clk 0:00:07]}  Kf6 {[%clk 0:00:11]} 56. hxg5+ {[%clk 0:00:07]}  Kxg5 {[%clk 0:00:12]} 57. Nf3+ {[%clk 0:00:08]}  Bxf3 {[%clk 0:00:12]} 58. Kxf3 {[%clk 0:00:07]}  Nxd3 {[%clk 0:00:13]} 0-1


[Site "https://www.chess.com"]

[Event "Titled Tuesday Blitz November 14 Early 2023"]
[White "Devaev, Alexander"]
[Black "Degenbaev, Aziz"]
[WhiteFideId "4169395"]
[BlackFideId "13802640"]
[WhiteElo "2460"]
[BlackElo "2648"]
[Result "0-1"]
[Round "3"]
[TimeControl "180+1"]
[Date "2023.11.14"]
[WhiteClock "0:00:00"]
[BlackClock "0:00:24"]
[Board "116"]

1. Nf3 {[%clk 0:03:00]}  Nf6 {[%clk 0:02:58]} 2. c4 {[%clk 0:03:01]}  g6 {[%clk 0:02:59]} 3. Nc3 {[%clk 0:03:01]}  Bg7 {[%clk 0:02:59]} 4. e4 {[%clk 0:03:02]}  d6 {[%clk 0:03:00]} 5. d4 {[%clk 0:03:02]}  O-O {[%clk 0:03:01]} 6. h3 {[%clk 0:03:03]}  a6 {[%clk 0:02:54]} 7. a4 {[%clk 0:02:58]}  Nbd7 {[%clk 0:02:54]} 8. Bg5 {[%clk 0:02:57]}  c5 {[%clk 0:02:54]} 9. d5 {[%clk 0:02:57]}  h6 {[%clk 0:02:53]} 10. Be3 {[%clk 0:02:58]}  Qa5 {[%clk 0:02:35]} 11. Bd2 {[%clk 0:02:49]}  Qc7 {[%clk 0:02:28]} 12. Be2 {[%clk 0:02:44]}  e6 {[%clk 0:02:26]} 13. dxe6 {[%clk 0:02:27]}  fxe6 {[%clk 0:02:26]} 14. e5 {[%clk 0:02:27]}  dxe5 {[%clk 0:02:13]} 15. Qc2 {[%clk 0:02:27]}  g5 {[%clk 0:02:01]} 16. h4 {[%clk 0:01:55]}  g4 {[%clk 0:01:54]} 17. Nh2 {[%clk 0:01:55]}  h5 {[%clk 0:01:47]} 18. Nf1 {[%clk 0:01:55]}  Nb8 {[%clk 0:01:39]} 19. Ng3 {[%clk 0:01:45]}  Nc6 {[%clk 0:01:39]} 20. O-O {[%clk 0:01:33]}  Nd4 {[%clk 0:01:33]} 21. Qd1 {[%clk 0:01:33]}  Bd7 {[%clk 0:01:20]} 22. Bd3 {[%clk 0:01:30]}  Bc6 {[%clk 0:01:19]} 23. Bg5 {[%clk 0:01:26]}  Qf7 {[%clk 0:00:50]} 24. Qb1 {[%clk 0:01:24]}  e4 {[%clk 0:00:42]} 25. Ncxe4 {[%clk 0:01:09]}  Nxe4 {[%clk 0:00:41]} 26. Bxe4 {[%clk 0:01:07]}  Bxe4 {[%clk 0:00:36]} 27. Qxe4 {[%clk 0:01:07]}  Nf5 {[%clk 0:00:36]} 28. Rae1 {[%clk 0:00:53]}  Bd4 {[%clk 0:00:28]} 29. Nxf5 {[%clk 0:00:12]}  exf5 {[%clk 0:00:28]} 30. Qe6 {[%clk 0:00:07]}  Rae8 {[%clk 0:00:28]} 31. Qh6 {[%clk 0:00:02]}  Bg7 {[%clk 0:00:26]} 32. Qd6 {[%clk 0:00:01]}  Qxc4 {[%clk 0:00:24]} 33. Rxe8 {[%clk 0:00:00]}  Rxe8 {[%clk 0:00:24]} 0-1


[Site "https://www.chess.com"]

[Event "Titled Tuesday Blitz November 14 Early 2023"]
[White "Makhnev, Denis"]
[Black "UNSTOPPABLE_LEGEND"]
[WhiteFideId "13707647"]
[WhiteElo "2644"]
[BlackElo "2460"]
[Result "1-0"]
[Round "3"]
[TimeControl "180+1"]
[Date "2023.11.14"]
[WhiteClock "0:01:13"]
[BlackClock "0:01:07"]
[Board "117"]

1. Nf3 {[%clk 0:02:57]}  d5 {[%clk 0:02:59]} 2. c4 {[%clk 0:02:56]}  d4 {[%clk 0:02:59]} 3. g3 {[%clk 0:02:56]}  c5 {[%clk 0:02:58]} 4. Bg2 {[%clk 0:02:56]}  Nc6 {[%clk 0:02:58]} 5. O-O {[%clk 0:02:56]}  e5 {[%clk 0:02:58]} 6. e3 {[%clk 0:02:57]}  Nf6 {[%clk 0:02:54]} 7. exd4 {[%clk 0:02:56]}  exd4 {[%clk 0:02:55]} 8. Re1+ {[%clk 0:02:56]}  Be7 {[%clk 0:02:55]} 9. d3 {[%clk 0:02:56]}  O-O {[%clk 0:02:52]} 10. Ne5 {[%clk 0:02:56]}  Nxe5 {[%clk 0:02:49]} 11. Rxe5 {[%clk 0:02:57]}  Bd6 {[%clk 0:02:50]} 12. Re1 {[%clk 0:02:57]}  h6 {[%clk 0:02:49]} 13. Nd2 {[%clk 0:02:56]}  Qc7 {[%clk 0:02:48]} 14. Ne4 {[%clk 0:02:54]}  Nxe4 {[%clk 0:02:48]} 15. Bxe4 {[%clk 0:02:55]}  Bd7 {[%clk 0:02:45]} 16. Qh5 {[%clk 0:02:51]}  Rae8 {[%clk 0:02:44]} 17. Bd2 {[%clk 0:02:45]}  Re5 {[%clk 0:02:41]} 18. Qf3 {[%clk 0:02:43]}  b6 {[%clk 0:02:36]} 19. Bf4 {[%clk 0:02:42]}  Re7 {[%clk 0:02:36]} 20. Bh7+ {[%clk 0:02:33]}  Kxh7 {[%clk 0:02:30]} 21. Rxe7 {[%clk 0:02:33]}  Bxf4 {[%clk 0:02:26]} 22. Qxf4 {[%clk 0:02:31]}  Qxf4 {[%clk 0:02:26]} 23. gxf4 {[%clk 0:02:32]}  Bf5 {[%clk 0:02:27]} 24. Rd1 {[%clk 0:02:27]}  Kg6 {[%clk 0:02:26]} 25. Rxa7 {[%clk 0:02:24]}  Re8 {[%clk 0:02:26]} 26. Rb7 {[%clk 0:02:19]}  Re6 {[%clk 0:02:17]} 27. Kg2 {[%clk 0:02:14]}  Bg4 {[%clk 0:02:15]} 28. Rd2 {[%clk 0:02:12]}  h5 {[%clk 0:02:13]} 29. a3 {[%clk 0:02:09]}  h4 {[%clk 0:02:12]} 30. b4 {[%clk 0:02:07]}  Kf5 {[%clk 0:02:06]} 31. Rxf7+ {[%clk 0:02:06]}  Kg6 {[%clk 0:02:06]} 32. Rc7 {[%clk 0:02:02]}  Kf5 {[%clk 0:02:04]} 33. Rxg7 {[%clk 0:02:00]}  Kxf4 {[%clk 0:02:04]} 34. Rf7+ {[%clk 0:01:58]}  Kg5 {[%clk 0:02:04]} 35. h3 {[%clk 0:01:54]}  Bh5 {[%clk 0:01:58]} 36. Rc7 {[%clk 0:01:49]}  Kf4 {[%clk 0:01:57]} 37. bxc5 {[%clk 0:01:40]}  bxc5 {[%clk 0:01:56]} 38. Rxc5 {[%clk 0:01:40]}  Bf3+ {[%clk 0:01:56]} 39. Kf1 {[%clk 0:01:38]}  Rb6 {[%clk 0:01:55]} 40. Rb5 {[%clk 0:01:37]}  Ra6 {[%clk 0:01:53]} 41. Ra2 {[%clk 0:01:34]}  Rg6 {[%clk 0:01:50]} 42. Rd5 {[%clk 0:01:24]}  Rb6 {[%clk 0:01:10]} 43. Rxd4+ {[%clk 0:01:19]}  Ke5 {[%clk 0:01:09]} 44. Re4+ {[%clk 0:01:16]}  Bxe4 {[%clk 0:01:08]} 45. dxe4 {[%clk 0:01:16]}  Kxe4 {[%clk 0:01:09]} 46. a4 {[%clk 0:01:13]}  Kd4 {[%clk 0:01:10]} 47. a5 {[%clk 0:01:13]}  Ra6 {[%clk 0:01:10]} 48. Ke2 {[%clk 0:01:12]}  Kxc4 {[%clk 0:01:07]} 49. Kf3 {[%clk 0:01:13]} 1-0


[Site "https://www.chess.com"]

[Event "Titled Tuesday Blitz November 14 Early 2023"]
[White "Kashtanov, Ruslan"]
[Black "Adla, Diego"]
[WhiteFideId "4124871"]
[BlackFideId "100072"]
[WhiteElo "2451"]
[BlackElo "2639"]
[Result "0-1"]
[Round "3"]
[TimeControl "180+1"]
[Date "2023.11.14"]
[WhiteClock "0:00:13"]
[BlackClock "0:02:10"]
[Board "118"]

1. e4 {[%clk 0:03:00]}  e5 {[%clk 0:02:59]} 2. Nf3 {[%clk 0:03:00]}  Nc6 {[%clk 0:02:59]} 3. d4 {[%clk 0:03:00]}  exd4 {[%clk 0:02:59]} 4. Bc4 {[%clk 0:03:01]}  Nf6 {[%clk 0:02:58]} 5. e5 {[%clk 0:03:01]}  d5 {[%clk 0:02:57]} 6. Bb5 {[%clk 0:03:01]}  Ne4 {[%clk 0:02:58]} 7. Nxd4 {[%clk 0:03:01]}  Bc5 {[%clk 0:02:57]} 8. Be3 {[%clk 0:03:00]}  O-O {[%clk 0:02:56]} 9. Nxc6 {[%clk 0:03:00]}  bxc6 {[%clk 0:02:55]} 10. Bxc5 {[%clk 0:02:59]}  Nxc5 {[%clk 0:02:55]} 11. Bxc6 {[%clk 0:02:59]}  Rb8 {[%clk 0:02:55]} 12. Qxd5 {[%clk 0:02:38]}  Qe7 {[%clk 0:02:54]} 13. O-O {[%clk 0:02:24]}  Rxb2 {[%clk 0:02:50]} 14. Na3 {[%clk 0:02:10]}  Ne6 {[%clk 0:02:35]} 15. Nc4 {[%clk 0:01:56]}  Rd8 {[%clk 0:02:21]} 16. Qa5 {[%clk 0:01:40]}  Rxc2 {[%clk 0:02:15]} 17. Rac1 {[%clk 0:01:02]}  Rxc1 {[%clk 0:02:10]} 18. Rxc1 {[%clk 0:00:13]}  Nd4 {[%clk 0:02:10]} 0-1


[Site "https://www.chess.com"]